{"text_format":"1","workbook":"xlsx","n_sheets":2,"sheets":["Einleitung","Erfolgsrechnung"],"not_rendered":{"charts":0,"images":2,"macros":1,"external_links":0,"defined_names":3,"comments":1,"pivot_tables":0},"unopened":[],"bounds":{"document_bytes":16777216,"sheet_cells":100000,"rows_first":2000,"rows_last":500,"rows_between":2000,"halvings":0,"cell_chars":16384,"cell_head_chars":4096},"cells_cut":0,"cells_raw":0,"read":"whole","date_system":"1900"}

{"sheet":"Einleitung","index":0,"n_rows":23,"n_cols":10,"rows_kept":23,"cut":false,"hidden":false,"merged":[[13,1,13,7],[14,1,14,7],[15,1,15,7],[21,1,21,7],[22,1,22,7],[18,1,18,7],[19,1,19,7],[20,1,20,7],[1,1,1,7],[3,1,3,7],[4,1,4,7],[5,1,5,7],[12,1,12,7],[7,1,7,7],[11,1,11,7],[8,1,8,7],[9,1,9,7],[10,1,10,7],[6,1,6,7]]}
[null,null,null,null,null,null,null,null,null,"Budgetjahr"]
[null,"Finanzformular 2- und 4-jährige Konzeptförderbeiträge",null,null,null,null,null,null,null,2022]
[]
[null,"Anleitung zum Ausfüllen"]
[null,"1. RE = abgeschlossen Rechnung, BU = Budget"]
[null,"2. Es müssen nicht alle Zeilen ausgefüllt werden. Zeilen mit Summierungsformeln sind grau markiert und für die Eingabe gesperrt."]
[null,"3. Jahresabrechung: alle Beträge auf ganze Franken runden. Budget: alle Beträge auf 100er runden."]
[null,"4. Produktion inkl. Aufführungen: alle Aufführungen dieser Produktion in diesem Jahr (unabhängig wo diese stattfinden)."]
[null,"5. Produktion inkl. Aufführungen: Total von Personal- und Sachkosten."]
[null,"6. Grundsätzlich sollen die Kosten einem künstlerischen Format zugeordnet werden (Produktion, Recherche etc.). "]
[null,"7. Bei sonstigen künstlerischen Formaten kann beliebig ergänzt werden, was nicht in Produktion, Recherche oder Tournee passt. (z.B. Workshop, Installation)"]
[null,"8. Übergreifende Löhne, z. B. Produktionsleitung soll zu 50% den künstlerischen Formaten zugeordnet werden und zu 50% unter Betrieblicher Aufwand: Übriger Lohnaufwand aufgeführt werden."]
[null,"9. Mit Betriebsaufwand sind Aufwände gemeint, die keinem einzelnen künstlerischen Format zugeordnet werden können, sondern dem Betrieb gelten."]
[null,"10. Mietaufwand kann ein Büro, Proberaum oder Lager sein."]
[null,"11. Sonstige Gastspieltätigkeiten: zusätzliche Gastspiele, die nicht bereits unter Produktion erfasst sind (z.B. Gastspiele einer Produktion aus den Vorjahren)."]
[null,"12. Budget 2022: Wenn es keine künstlerische Tätigkeit gibt in diesem Jahr, kann es leer gelassen werden. Bei der inhaltlichen Beurteilung entsteht dadurch kein Nachteil."]
[]
[]
[null,"Ansprechpersonen bei Rückfragen"]
[null,"Ihre Ansprechperson bei Stadt Zürich Kultur  "]
[null,"Silke Slevogt: silke.slevogt@zuerich.ch / Tanz und Theater"]
[null,"Denise Zatti: denise.zatti@zuerich.ch / Controller"]
[null,"Luca Pasqua: luca.pasqua@zuerich.ch / Departementscontroller"]

{"sheet":"Erfolgsrechnung","index":1,"n_rows":52,"n_cols":9,"rows_kept":52,"cut":false,"hidden":false,"merged":[[3,5,3,8],[26,5,26,8],[34,10,35,10],[34,11,35,11],[34,12,35,12],[34,13,35,13],[36,10,37,10],[36,11,37,11],[36,12,37,12],[36,13,37,13]]}
["Erfolgsrechnungen 2- und 4-jährige Konzeptförderbeiträge"]
["2-jährig: 2024-2025 / 4-jährig: 2024-2027"]
[]
["Aufwände","Jahresrechnung",null,"Budget",null,"Förderperiode\n(Je nach Antrag 2 oder 4 Jahre ausfüllen)"]
[null,{"$f":"CONCATENATE(\"RE \"&Budgetjahr_Neu-1)","v":"RE 2021"},null,{"$f":"CONCATENATE(\"BU \"&Budgetjahr_Neu)","v":"BU 2022"},null,{"$f":"CONCATENATE(\"BU \"&Budgetjahr_Neu+2)","v":"BU 2024"},{"$f":"CONCATENATE(\"BU \"&Budgetjahr_Neu+3)","v":"BU 2025"},{"$f":"CONCATENATE(\"BU \"&Budgetjahr_Neu+4)","v":"BU 2026"},{"$f":"CONCATENATE(\"BU \"&Budgetjahr_Neu+5)","v":"BU 2027"}]
[]
["Aufwand pro Format (Totalkosten pro künstl. Format)",{"$f":"SUM(B8:B14)","v":0},null,{"$f":"SUM(D8:D14)","v":0},null,{"$f":"SUM(F8:F14)","v":0},{"$f":"SUM(G8:G14)","v":0},{"$f":"SUM(H8:H14)","v":0},{"$f":"SUM(I8:I14)","v":0}]
["Produktion 1 inkl. Aufführungen"]
["Produktion 2 inkl. Aufführungen"]
["Produktion 3 inkl. Aufführungen"]
["Recherche 1"]
["Recherche 2"]
["Sonstige Gastspieltätigkeiten"]
["Sonstige künstlerische Formate"]
[]
["Betrieblicher Aufwand",{"$f":"SUM(B17:B20)","v":0},null,{"$f":"SUM(D17:D20)","v":0},null,{"$f":"SUM(F17:F20)","v":0},{"$f":"SUM(G17:G20)","v":0},{"$f":"SUM(H17:H20)","v":0},{"$f":"SUM(I17:I20)","v":0}]
["Übriger Lohnaufwand (inkl. Sozialabgaben)"]
["Werbung, Kommunikation"]
["Betriebsaufwand"]
["Mietaufwand"]
[]
["Übrige Aufwände (z.B. Finanzaufwand, Abschreibungen…etc.)"]
[]
["Total Aufwand",{"$f":"B7+B16+B22","v":0},null,{"$f":"D7+D16+D22","v":0},null,{"$f":"F7+F16+F22","v":0},{"$f":"G7+G16+G22","v":0},{"$f":"H7+H16+H22","v":0},{"$f":"I7+I16+I22","v":0}]
[]
[]
["Erträge","Jahresrechnung",null,"Budget",null,"Förderperiode\n(Je nach Antrag 2 oder 4 Jahre ausfüllen)"]
[null,{"$f":"CONCATENATE(\"RE \"&Budgetjahr_Neu-1)","v":"RE 2021"},null,{"$f":"CONCATENATE(\"BU \"&Budgetjahr_Neu)","v":"BU 2022"},null,{"$f":"CONCATENATE(\"BU \"&Budgetjahr_Neu+2)","v":"BU 2024"},{"$f":"CONCATENATE(\"BU \"&Budgetjahr_Neu+3)","v":"BU 2025"},{"$f":"CONCATENATE(\"BU \"&Budgetjahr_Neu+4)","v":"BU 2026"},{"$f":"CONCATENATE(\"BU \"&Budgetjahr_Neu+5)","v":"BU 2027"}]
[]
["Erträge",{"$f":"SUM(B31:B32)","v":0},null,{"$f":"SUM(D31:D32)","v":0},null,{"$f":"SUM(F31:F32)","v":0},{"$f":"SUM(G31:G32)","v":0},{"$f":"SUM(H31:H32)","v":0},{"$f":"SUM(I31:I32)","v":0}]
["Eintritte"]
["Gastspielbeiträge"]
[]
["Subventionen",{"$f":"SUM(B35:B38)","v":0},null,{"$f":"SUM(D35:D38)","v":0},null,{"$f":"SUM(F35:F38)","v":0},{"$f":"SUM(G35:G38)","v":0},{"$f":"SUM(H35:H38)","v":0},{"$f":"SUM(I35:I38)","v":0}]
["Stadt Zürich"]
["Kanton Zürich"]
["Andere Gemeinden/Kantone"]
["Bund (Pro Helvetia)"]
[]
["Weitere Beiträge Dritte",{"$f":"SUM(B41:B43)","v":0},null,{"$f":"SUM(D41:D43)","v":0},null,{"$f":"SUM(F41:F43)","v":0},{"$f":"SUM(G41:G43)","v":0},{"$f":"SUM(H41:H43)","v":0},{"$f":"SUM(I41:I43)","v":0}]
["Koproduktionsbeiträge"]
["Stiftungen"]
["Sponsoring, Spenden, Projektbeiträge, etc."]
[]
["Übrige Erträge (z.B. Finanzertrag, Ausserordentlicher Ertrag)"]
[]
["Total Erträge",{"$f":"B30+B34+B40+B45","v":0},null,{"$f":"D30+D34+D40+D45","v":0},null,{"$f":"F30+F34+F40+F45","v":0},{"$f":"G30+G34+G40+G45","v":0},{"$f":"H30+H34+H40+H45","v":0},{"$f":"I30+I34+I40+I45","v":0}]
[]
[]
["Total Erträge",{"$f":"B47","v":0},null,{"$f":"D47","v":0},null,{"$f":"F47","v":0},{"$f":"G47","v":0},{"$f":"H47","v":0},{"$f":"I47","v":0}]
["abzüglich Total Aufwand",{"$f":"B24","v":0},null,{"$f":"D24","v":0},null,{"$f":"F24","v":0},{"$f":"G24","v":0},{"$f":"H24","v":0},{"$f":"I24","v":0}]
["Jahreserfolg",{"$f":"B50-B51","v":0},null,{"$f":"D50-D51","v":0},null,{"$f":"F50-F51","v":0},{"$f":"G50-G51","v":0},{"$f":"H50-H51","v":0},{"$f":"I50-I51","v":0}]